fUSD/lending_fUSD_20240624
["ID","MTS","AMOUNT","RATE_DAILY","PERIOD"]
[330274813,1719221462587,-815.29,0.0002,4]
[330274814,1719221462598,-500.0,0.0002,4]
[330274815,1719221462608,-883.06,0.0002,4]
[330274816,1719221462617,-729.24,0.0002,4]
[330274817,1719221462627,-737.88,0.0002,4]
[330274818,1719221462637,-500.0,0.0002,4]
[330274819,1719221462647,-500.0,0.0002,4]
[330274820,1719221462656,-228.2413647,0.0002,4]
[330274821,1719221462665,-500.0,0.0002,4]
[330274822,1719221462674,-815.27,0.0002,4]
[330274823,1719221462684,-840.12,0.0002,4]
[330274824,1719221462702,-500.0,0.0002,4]
[330274825,1719221462725,-500.0,0.0002,4]
[330274826,1719221462734,-500.0,0.0002,4]
[330274827,1719221462744,-500.0,0.0002,4]
[330274828,1719221462753,-500.0,0.0002,4]
[330274829,1719221462763,-275.36858132,0.0002,2]
[330274830,1719221462775,-741.45,0.0002,4]
[330274831,1719221462785,-500.0,0.0002,4]
[330274832,1719221462795,-500.0,0.0002,4]
[330274833,1719221462806,-840.22,0.0002,4]
[330274834,1719221462816,-468.61,0.0002,4]
[330274835,1719221462826,-945.66,0.0002,4]
[330274836,1719221462836,-500.0,0.0002,4]
[330274837,1719221462845,-639.28,0.0002,4]
[330274838,1719221462854,-500.0,0.0002,4]
[330274839,1719221462864,-500.0,0.0002,4]
[330274840,1719221462873,-935.12,0.0002,4]
[330274841,1719221462883,-258.45444187,0.0002,4]
[330274842,1719221462893,-500.0,0.0002,4]
[330274843,1719221462902,-172.46619122,0.0002,4]
[330274844,1719221462912,-957.36,0.0002,4]
[330274845,1719221462921,-543.91,0.0002,4]
[330274846,1719221462932,-500.0,0.0002,4]
[330274847,1719221462941,-505.08,0.0002,4]
[330274848,1719221462951,-500.0,0.0002,2]
[330274849,1719221462960,-500.0,0.0002,4]
[330274850,1719221462970,-841.78,0.0002,4]
[330274851,1719221462980,-537.13,0.0002,4]
[330274852,1719221462989,-698.57,0.0002,4]
[330274853,1719221462999,-836.32,0.0002,4]
[330274854,1719221463009,-177.46533065,0.0002,2]
[330274855,1719221463019,-500.0,0.0002,4]
[330274856,1719221463029,-588.59,0.0002,4]
[330274857,1719221463038,-657.52,0.0002,4]
[330274858,1719221463048,-794.26,0.0002,4]
[330274859,1719221463058,-500.0,0.0002,4]
[330274860,1719221463067,-500.0,0.0002,4]
[330274861,1719221463097,-500.0,0.0002,4]
[330274862,1719221463107,-791.91,0.0002,4]
[330274863,1719221463116,-1694.54,0.0002,4]
[330274864,1719221463130,-896.28,0.0002,4]
[330274865,1719221463140,-608.41,0.0002,4]
[330274866,1719221463149,-500.0,0.0002,4]
[330274867,1719221463159,-500.0,0.0002,4]
[330274868,1719221463169,-2792.65,0.0002,4]
[330274869,1719221463181,-529.67,0.0002,4]
[330274870,1719221463191,-500.0,0.0002,4]
[330274871,1719221463201,-635.89,0.0002,4]
[330274872,1719221463211,-513.97,0.0002,4]
[330274873,1719221463220,-500.0,0.0002,4]
[330274874,1719221463230,-1014.35,0.0002,4]
[330274875,1719221463239,-1027.87,0.0002,4]
[330274876,1719221463249,-726.38,0.0002,4]
[330274877,1719221463258,-500.0,0.0002,4]
[330274878,1719221463268,-652.98,0.0002,4]
[330274879,1719221463278,-658.16,0.0002,4]
[330274880,1719221463288,-1100.8,0.0002,4]
[330274881,1719221463297,-808.21,0.0002,4]
[330274882,1719221463307,-500.0,0.0002,4]
[330274883,1719221463317,-600.96,0.0002,4]
[330274884,1719221463327,-580.36,0.0002,4]
[330274885,1719221463337,-541.37,0.0002,4]
[330274886,1719221463346,-2529.06,0.0002,4]
[330274887,1719221463356,-2863.88,0.0002,4]
[330274888,1719221463365,-500.0,0.0002,4]
[330274889,1719221463375,-500.0,0.0002,4]
[330274890,1719221463384,-500.0,0.0002,4]
[330274891,1719221463394,-500.0,0.0002,4]
[330274892,1719221463403,-623.73,0.0002,4]
[330274893,1719221463412,-653.53,0.0002,4]
[330274894,1719221463421,-763.67,0.0002,4]
[330274895,1719221463431,-1808.46,0.0002,4]
[330274896,1719221463440,-610.29,0.0002,4]
[330274897,1719221463450,-908.15,0.0002,4]
[330274898,1719221463460,-533.28,0.0002,4]
[330274899,1719221463469,-584.9,0.0002,4]
[330274900,1719221463478,-512.0,0.0002,4]
[330274901,1719221463488,-500.0,0.0002,2]
[330274902,1719221463498,-500.0,0.0002,4]
[330274903,1719221463507,-1091.83,0.0002,4]
[330274904,1719221463517,-500.0,0.0002,4]
[330274905,1719221463526,-533.39,0.0002,4]
[330274906,1719221463536,-500.0,0.0002,4]
[330274907,1719221463545,-1109.31,0.0002,4]
[330274908,1719221463555,-738.89,0.0002,4]
[330274909,1719221463565,-500.0,0.0002,4]
[330274910,1719221463574,-500.0,0.0002,4]
[330274911,1719221463591,-932.5,0.0002,4]
[330274912,1719221463600,-690.76,0.0002,4]
[330274913,1719221463614,-573.56,0.0002,4]
[330274914,1719221463624,-500.0,0.0002,4]
[330274915,1719221463633,-500.0,0.0002,4]
[330274916,1719221463643,-2102.4,0.0002,4]
[330274917,1719221463651,-500.0,0.0002,4]
[330274918,1719221463660,-500.0,0.0002,4]
[330274919,1719221463670,-3401.89,0.0002,4]
[330274920,1719221463679,-500.0,0.0002,4]
[330274921,1719221463688,-501.94,0.0002,4]
[330274922,1719221463698,-881.78,0.0002,4]
[330274923,1719221463706,-1798.69,0.0002,4]
[330274924,1719221463716,-1656.04,0.0002,4]
[330274925,1719221463725,-1396.5,0.0002,4]
[330274926,1719221463734,-500.0,0.0002,4]
[330274927,1719221463743,-1145.17,0.0002,4]
[330274928,1719221463752,-1444.01,0.0002,4]
[330274929,1719221463761,-2054.46,0.0002,4]
[330274930,1719221463770,-10044.42,0.0002,4]
[330274931,1719221463780,-728.03,0.0002,4]
[330274932,1719221463790,-685.73,0.0002,4]
[330274933,1719221463799,-495.80595648,0.0002,4]
[330274934,1719221463809,-500.0,0.0002,4]
[330274935,1719221463819,-500.0,0.0002,4]
[330274936,1719221463828,-722.97,0.0002,4]
[330274937,1719221463848,-858.63,0.0002,4]
[330274938,1719221463857,-500.0,0.0002,4]
[330274939,1719221463866,-608.78,0.0002,4]
[330274940,1719221463876,-500.0,0.0002,4]
[330274941,1719221463888,-530.98,0.0002,4]
[330274942,1719221463897,-2951.6,0.0002,4]
[330274943,1719221463906,-877.57,0.0002,4]
[330274944,1719221463915,-500.0,0.0002,4]
[330274945,1719221463925,-500.0,0.0002,4]
[330274946,1719221463934,-14859.61,0.0002,4]
[330274947,1719221463944,-500.0,0.0002,4]
[330274948,1719221463954,-465.0,0.0002,4]
[330274949,1719221463963,-880.92,0.0002,4]
[330274950,1719221463972,-863.63,0.0002,4]
[330274951,1719221463981,-1665.06,0.0002,4]
[330274952,1719221463991,-500.0,0.0002,4]
[330274953,1719221464000,-1512.7,0.0002,4]
[330274954,1719221464010,-500.0,0.0002,4]
[330274955,1719221464020,-500.0,0.0002,4]
[330274956,1719221464030,-1001.28,0.0002,2]
[330274957,1719221464040,-1138.11,0.0002,4]
[330274958,1719221464050,-500.0,0.0002,4]
[330274959,1719221464059,-500.0,0.0002,4]
[330274960,1719221464068,-500.0,0.0002,4]
[330274961,1719221464077,-922.67,0.0002,4]
[330274962,1719221464099,-500.0,0.0002,4]
[330274963,1719221464109,-500.0,0.0002,4]
[330274964,1719221464118,-692.88,0.0002,4]
[330274965,1719221464132,-1014.99,0.0002,4]
[330274966,1719221464141,-500.0,0.0002,4]
[330274967,1719221464151,-724.34,0.0002,4]
[330274968,1719221464160,-745.13,0.0002,4]
[330274969,1719221464170,-1843.17,0.0002,4]
[330274970,1719221464180,-772.68,0.0002,4]
[330274971,1719221464190,-588.67,0.0002,4]
[330274972,1719221464200,-1421.28,0.0002,4]
[330274973,1719221464209,-1937.34,0.0002,4]
[330274974,1719221464219,-500.0,0.0002,4]
[330274975,1719221464228,-500.0,0.0002,4]
[330274976,1719221464238,-893.12426687,0.0002,2]
[330274977,1719221464247,-840.14,0.0002,4]
[330274978,1719221464256,-500.0,0.0002,4]
[330274979,1719221464266,-1094.97,0.0002,4]
[330274980,1719221464276,-500.0,0.0002,4]
[330274981,1719221464285,-528.93,0.0002,4]
[330274982,1719221464294,-500.0,0.0002,4]
[330274983,1719221464303,-610.19,0.0002,4]
[330274984,1719221464313,-500.0,0.0002,4]
[330274985,1719221464322,-589.19,0.0002,4]
[330274986,1719221464336,-500.0,0.0002,4]
[330274987,1719221464351,-500.0,0.0002,4]
[330274988,1719221464360,-939.72,0.0002,4]
[330274989,1719221464369,-1093.78610843,0.0002,4]
[330274990,1719221464386,-108.39389157,0.0002,4]
[330274991,1719221464395,-870.19,0.0002,4]
[330274992,1719221464404,-500.0,0.0002,4]
[330274993,1719221464413,-500.0,0.0002,4]
[330274994,1719221464422,-1030.47,0.0002,4]
[330274995,1719221464431,-1039.09,0.0002,4]
[330274996,1719221464440,-247.63676836,0.0002,4]
[330274997,1719221464450,-819.45729106,0.0002,4]
[330274998,1719221464461,-460.75955016,0.0002,4]
[330274999,1719221464473,-588.81639042,0.0002,4]
[330275000,1719221464482,-179.41524163,0.0002,4]
[330275001,1719221464496,-320.58475837,0.0002,4]
[330275002,1719221464505,-635.53,0.0002,4]
[330275003,1719221464515,-500.0,0.0002,4]
[330275004,1719221464525,-500.0,0.0002,4]
[330275005,1719221464535,-500.0,0.0002,4]
[330275006,1719221464544,-362.69515846,0.0002,4]
[330275007,1719221464823,-508.78,0.00018577,2]
[330275008,1719221464843,-331.15484154,0.0002,4]
[330275009,1719221464853,-1486.41,0.0002,4]
[330275010,1719221464862,-1895.67,0.0002,4]
[330275011,1719221464871,-954.61,0.0002,4]
[330275012,1719221464879,-620.47,0.0002,4]
[330275013,1719221464888,-404.02359846,0.0002,4]
[330275014,1719221464899,-565.92778771,0.0002,4]
[330275015,1719221465036,-757.12861383,0.0002,4]
[330275016,1719221465045,-484.11138617,0.0002,4]
[330275017,1719221465058,-786.62861383,0.0002,4]
[330275018,1719221465067,-500.0,0.0002,4]
[330275019,1719221465076,-1536.5,0.0002,4]
[330275020,1719221465098,-500.0,0.0002,4]
[330275021,1719221465108,-500.0,0.0002,4]
[330275022,1719221465117,-500.0,0.0002,4]
[330275023,1719221465126,-500.0,0.0002,4]
[330275024,1719221465137,-150.8154652,0.0002,4]
[330275025,1719221465148,-349.1845348,0.0002,4]
[330275026,1719221465157,-500.0,0.0002,4]
[330275027,1719221465166,-1096.63,0.0002,4]
[330275028,1719221465175,-98.27532691,0.0002,4]
[330275029,1719221465501,-353.44412154,0.0002,4]
[330275030,1719221465514,-210.18055155,0.0002,4]
[330275031,1719221465523,-500.0,0.0002,4]
[330275032,1719221465533,-1249.592933,0.0002,4]
[330275033,1719221466806,-108.457067,0.0002,4]
[330275034,1719221466815,-500.0,0.0002,4]
[330275035,1719221466825,-65.982933,0.0002,4]
[330275036,1719221466851,-944.577067,0.0002,4]
[330275037,1719221466860,-500.0,0.0002,4]
[330275038,1719221466869,-1862.43,0.0002,4]
[330275039,1719221466878,-500.0,0.0002,4]
[330275040,1719221466887,-500.0,0.0002,4]
[330275041,1719221466896,-1311.74,0.0002,4]
[330275042,1719221466905,-500.0,0.0002,4]
[330275043,1719221466914,-569.02,0.0002,4]
[330275044,1719221466922,-612.46,0.0002,4]
[330275045,1719221466931,-500.0,0.0002,4]
[330275046,1719221466940,-500.0,0.0002,4]
[330275047,1719221466950,-500.0,0.0002,4]
[330275048,1719221466959,-500.0,0.0002,4]
[330275049,1719221466968,-774.27,0.0002,4]
[330275050,1719221466977,-1493.59,0.0002,4]
[330275051,1719221466986,-1076.34,0.0002,4]
[330275052,1719221466995,-1180.3,0.0002,4]
[330275053,1719221467006,-500.0,0.0002,4]
[330275054,1719221467015,-1602.79,0.0002,4]
[330275055,1719221467024,-596.37,0.0002,4]
[330275056,1719221467034,-904.49,0.0002,4]
[330275057,1719221467043,-3648.6,0.0002,4]
[330275058,1719221467052,-500.0,0.0002,4]
[330275059,1719221467062,-1401.97,0.0002,4]
[330275060,1719221467071,-500.0,0.0002,4]
[330275061,1719221467091,-500.0,0.0002,4]
[330275062,1719221467101,-500.0,0.0002,4]
[330275063,1719221467111,-1867.05,0.0002,4]
[330275064,1719221467122,-500.0,0.0002,4]
[330275065,1719221467137,-1917.18,0.0002,4]
[330275066,1719221467149,-539.5,0.0002,4]
[330275067,1719221467159,-747.4,0.0002,4]
[330275068,1719221467168,-550.72,0.0002,4]
[330275069,1719221467182,-5870.36,0.0002,4]
[330275070,1719221467193,-2388.91,0.0002,4]
[330275071,1719221467203,-500.0,0.0002,4]
[330275072,1719221467212,-501.37,0.0002,4]
[330275073,1719221467223,-1499.24,0.0002,4]
[330275074,1719221467237,-500.0,0.0002,4]
[330275075,1719221467250,-3128.36,0.0002,4]
[330275076,1719221467272,-784.49,0.0002,4]
[330275077,1719221467297,-1236.09,0.0002,4]
[330275078,1719221467333,-500.0,0.0002,4]
[330275079,1719221467414,-2500.0,0.0002,3]
[330275080,1719221467424,-500.0,0.0002,4]
[330275081,1719221467433,-500.0,0.0002,4]
[330275082,1719221467443,-570.65,0.0002,4]
[330275083,1719221467452,-1087.64,0.0002,4]
[330275084,1719221467461,-500.0,0.0002,4]
[330275085,1719221467470,-1492.08,0.0002,4]
[330275086,1719221467480,-2784.87,0.0002,4]
[330275087,1719221467489,-709.34,0.0002,4]
[330275088,1719221467499,-500.0,0.0002,4]
[330275089,1719221467508,-500.0,0.0002,2]
[330275090,1719221467517,-280.62,0.0002,4]
[330275091,1719221467526,-500.0,0.0002,4]
[330275092,1719221467535,-1293.94,0.0002,4]
[330275093,1719221467545,-1892.22,0.0002,4]
[330275094,1719221467554,-1278.17,0.0002,4]
[330275095,1719221467564,-924.07,0.0002,4]
[330275096,1719221467573,-500.0,0.0002,4]
[330275097,1719221467584,-985.76,0.0002,4]
[330275098,1719221467603,-500.0,0.0002,4]
[330275099,1719221467613,-2011.41,0.0002,4]
[330275100,1719221467622,-500.0,0.0002,4]
[330275101,1719221467631,-790.64,0.0002,4]
[330275102,1719221467640,-872.65,0.0002,4]
[330275103,1719221467650,-1891.81,0.0002,4]
[330275104,1719221467660,-500.0,0.0002,4]
[330275105,1719221467670,-500.0,0.0002,4]
[330275106,1719221467680,-500.0,0.0002,4]
[330275107,1719221467690,-500.0,0.0002,4]
[330275108,1719221467699,-500.0,0.0002,4]
[330275109,1719221467708,-574.92,0.0002,4]
[330275110,1719221467717,-788.54,0.0002,4]
[330275111,1719221467727,-500.0,0.0002,4]
[330275112,1719221467736,-3298.75,0.0002,4]
[330275113,1719221467747,-169.82,0.0002,4]
[330275114,1719221467757,-854.93,0.0002,4]
[330275115,1719221467767,-1016.82,0.0002,4]
[330275116,1719221467776,-500.0,0.0002,4]
[330275117,1719221467786,-500.0,0.0002,4]
[330275118,1719221467796,-500.0,0.0002,4]
[330275119,1719221467805,-2044.66,0.0002,4]
[330275120,1719221467815,-1350.85,0.0002,4]
[330275121,1719221467824,-500.0,0.0002,4]
[330275122,1719221467844,-196.20443442,0.00020025,2]
[330275123,1719221467854,-1000.0,0.00020061,2]
[330275124,1719221467864,-1208.54198432,0.00020096,2]
[330275125,1719221467874,-991.8,0.000201,2]
[330275126,1719221467883,-1217.95661573,0.00020118,2]
[330275127,1719221467893,-2638.2498216,0.00020134,2]
[330275128,1719221467903,-220.09,0.00020164,2]
[330275129,1719221467913,-6814.08305557,0.00020173,2]
[330275130,1719221467923,-419.52592285,0.00020173,2]
[330275131,1719221467932,-209.98252522,0.00020173,2]
[330275132,1719221467943,-341.1594427,0.00020273,4]
[330275133,1719221467952,-500.0,0.00020273,4]
[330275134,1719221467961,-1209.07,0.00020273,4]
[330275135,1719221467971,-500.0,0.00020273,4]
[330275136,1719221467981,-1731.28,0.00020273,4]
[330275137,1719221467990,-1285.84,0.00020273,4]
[330275138,1719221468000,-1212.55,0.00020273,4]
[330275139,1719221468009,-375.98579374,0.00020273,4]
[330275140,1719221468019,-500.0,0.00020273,4]
[330275141,1719221468029,-514.55,0.00020273,4]
[330275142,1719221468038,-707.98,0.00020273,4]
[330275143,1719221468048,-538.15,0.00020273,4]
[330275144,1719221468057,-673.57,0.00020273,4]
[330275145,1719221468066,-650.34,0.00020273,4]
[330275146,1719221468076,-500.0,0.00020273,4]
[330275147,1719221468096,-500.0,0.00020273,4]
[330275148,1719221468105,-500.0,0.00020273,4]
[330275149,1719221468114,-681.7,0.00020273,4]
[330275150,1719221468123,-500.0,0.00020273,4]
[330275151,1719221468135,-500.0,0.00020273,4]
[330275152,1719221468145,-500.0,0.00020273,4]
[330275153,1719221468154,-797.03,0.00020273,4]
[330275154,1719221468164,-573.41,0.00020273,4]
[330275155,1719221468176,-500.0,0.00020273,4]
[330275156,1719221468185,-960.92,0.00020273,4]
[330275157,1719221468194,-500.0,0.00020273,4]
[330275158,1719221468204,-250.0,0.00020273,4]
[330275159,1719221468214,-1004.34,0.00020273,4]
[330275160,1719221468223,-514.4,0.00020273,4]
[330275161,1719221468233,-578.82,0.00020273,4]
[330275162,1719221468242,-500.0,0.00020273,4]
[330275163,1719221468251,-500.0,0.00020273,4]
[330275164,1719221468261,-952.68,0.00020273,4]
[330275165,1719221468271,-674.88,0.00020273,4]
[330275166,1719221468281,-500.0,0.00020273,4]
[330275167,1719221468290,-894.67,0.00020273,4]
[330275168,1719221468300,-509.74,0.00020273,4]
[330275169,1719221468310,-515.99,0.00020273,4]
[330275170,1719221468324,-500.0,0.00020273,4]
[330275171,1719221468344,-677.43,0.00020273,4]
[330275172,1719221468354,-611.04,0.00020273,4]
[330275173,1719221468363,-659.6,0.00020273,4]
[330275174,1719221468372,-986.08,0.00020273,4]
[330275175,1719221468381,-613.86,0.00020273,4]
[330275176,1719221468390,-825.81,0.00020273,4]
[330275177,1719221468398,-707.48,0.00020273,4]
[330275178,1719221468407,-767.98,0.00020273,4]
[330275179,1719221468416,-621.76,0.00020273,4]
[330275180,1719221468425,-556.03,0.00020273,4]
[330275181,1719221468435,-563.64,0.00020273,4]
[330275182,1719221468444,-500.0,0.00020273,4]
[330275183,1719221468453,-500.0,0.00020273,4]
[330275184,1719221468462,-500.0,0.00020273,4]
[330275185,1719221468471,-500.0,0.00020273,4]
[330275186,1719221468480,-605.28,0.00020273,4]
[330275187,1719221468488,-500.0,0.00020273,4]
[330275188,1719221468500,-500.0,0.00020273,4]
[330275189,1719221468509,-500.0,0.00020273,4]
[330275190,1719221468519,-692.24,0.00020273,4]
[330275191,1719221468528,-500.0,0.00020273,4]
[330275192,1719221468538,-632.79,0.00020273,4]
[330275193,1719221468548,-500.0,0.00020273,4]
[330275194,1719221468557,-629.87,0.00020273,4]
[330275195,1719221468567,-500.0,0.00020273,4]
[330275196,1719221468576,-545.4,0.00020273,4]
[330275197,1719221468594,-500.0,0.00020273,4]
[330275198,1719221468603,-527.05,0.00020273,4]
[330275199,1719221468612,-827.28,0.00020273,4]
[330275200,1719221468622,-500.0,0.00020273,4]
[330275201,1719221468631,-500.0,0.00020273,4]
[330275202,1719221468641,-723.76,0.00020273,4]
[330275203,1719221468650,-532.01,0.00020273,4]
[330275204,1719221468659,-851.06,0.00020273,4]
[330275205,1719221468668,-860.24,0.00020273,4]
[330275206,1719221468678,-500.0,0.00020273,4]
[330275207,1719221468687,-500.0,0.00020273,4]
[330275208,1719221468697,-727.25,0.00020273,4]
[330275209,1719221468706,-637.91,0.00020273,4]
[330275210,1719221468716,-648.58,0.00020273,4]
[330275211,1719221468725,-764.02,0.00020273,4]
[330275212,1719221468735,-639.0,0.00020273,4]
[330275213,1719221468744,-500.0,0.00020273,4]
[330275214,1719221468753,-500.0,0.00020273,4]
[330275215,1719221468763,-752.54,0.00020273,4]
[330275216,1719221468773,-552.19,0.00020273,4]
[330275217,1719221468782,-675.49,0.00020273,4]
[330275218,1719221468792,-934.49,0.00020273,4]
[330275219,1719221468802,-500.0,0.00020273,4]
[330275220,1719221468812,-508.81,0.00020273,4]
[330275221,1719221468822,-541.88,0.00020273,4]
[330275222,1719221468831,-500.0,0.00020273,4]
[330275223,1719221468847,-650.21,0.00020273,4]
[330275224,1719221468856,-724.72,0.00020273,4]
[330275225,1719221468865,-647.16,0.00020273,4]
[330275226,1719221468874,-679.63,0.00020273,4]
[330275227,1719221468883,-740.35,0.00020273,4]
[330275228,1719221468892,-746.5,0.00020273,4]
[330275229,1719221468901,-849.74,0.00020273,4]
[330275230,1719221468910,-500.0,0.00020273,4]
[330275231,1719221468919,-500.1,0.00020273,4]
[330275232,1719221468928,-500.0,0.00020273,4]
[330275233,1719221468938,-587.85,0.00020273,4]
[330275234,1719221468950,-500.0,0.00020273,4]
[330275235,1719221468959,-706.96,0.00020273,4]
[330275236,1719221468969,-858.15,0.00020273,4]
[330275237,1719221468979,-563.8,0.00020273,4]
[330275238,1719221468989,-730.57,0.00020273,4]
[330275239,1719221468998,-606.55,0.00020273,4]
[330275240,1719221469009,-866.29,0.00020273,4]
[330275241,1719221469019,-690.17,0.00020273,4]
[330275242,1719221469030,-815.29,0.00020273,4]
[330275243,1719221469040,-883.06,0.00020273,4]
[330275244,1719221469050,-729.24,0.00020273,4]
[330275245,1719221469060,-737.88,0.00020273,4]
[330275246,1719221469070,-500.0,0.00020273,4]
[330275247,1719221469080,-500.0,0.00020273,4]
[330275248,1719221469100,-500.0,0.00020273,4]
[330275249,1719221469110,-815.27,0.00020273,4]
[330275250,1719221469120,-840.12,0.00020273,4]
[330275251,1719221469132,-500.0,0.00020273,4]
[330275252,1719221469141,-500.0,0.00020273,4]
[330275253,1719221469151,-550.47,0.00020273,4]
[330275254,1719221469161,-500.0,0.00020273,4]
[330275255,1719221469171,-500.0,0.00020273,4]
[330275256,1719221469183,-741.45,0.00020273,4]
[330275257,1719221469193,-500.0,0.00020273,4]
[330275258,1719221469204,-500.0,0.00020273,4]
[330275259,1719221469214,-840.22,0.00020273,4]
[330275260,1719221469224,-945.66,0.00020273,4]
[330275261,1719221469233,-500.0,0.00020273,4]
[330275262,1719221469243,-639.28,0.00020273,4]
[330275263,1719221469254,-500.0,0.00020273,4]
[330275264,1719221469264,-500.0,0.00020273,4]
[330275265,1719221469274,-935.12,0.00020273,4]
[330275266,1719221469283,-500.0,0.00020273,4]
[330275267,1719221469293,-957.36,0.00020273,4]
[330275268,1719221469304,-543.91,0.00020273,4]
[330275269,1719221469314,-500.0,0.00020273,4]
[330275270,1719221469323,-505.08,0.00020273,4]
[330275271,1719221469335,-551.79,0.00020273,4]
[330275272,1719221469347,-841.78,0.00020273,4]
[330275273,1719221469358,-698.57,0.00020273,4]
[330275274,1719221469372,-836.32,0.00020273,4]
[330275275,1719221469381,-500.0,0.00020273,4]
[330275276,1719221469391,-588.59,0.00020273,4]
[330275277,1719221469400,-657.52,0.00020273,4]
[330275278,1719221469409,-794.26,0.00020273,4]
[330275279,1719221469419,-500.0,0.00020273,4]
[330275280,1719221469429,-500.0,0.00020273,4]
[330275281,1719221469439,-500.0,0.00020273,4]
[330275282,1719221469448,-791.91,0.00020273,4]
[330275283,1719221469458,-1694.54,0.00020273,4]
[330275284,1719221469468,-896.28,0.00020273,4]
[330275285,1719221469478,-608.41,0.00020273,4]
[330275286,1719221469488,-500.0,0.00020273,4]
[330275287,1719221469498,-500.0,0.00020273,4]
[330275288,1719221469507,-2792.65,0.00020273,4]
[330275289,1719221469518,-529.67,0.00020273,4]
[330275290,1719221469528,-500.0,0.00020273,4]
[330275291,1719221469539,-635.89,0.00020273,4]
[330275292,1719221469549,-513.97,0.00020273,4]
[330275293,1719221469560,-500.0,0.00020273,4]
[330275294,1719221469571,-1014.35,0.00020273,4]
[330275295,1719221469584,-1027.87,0.00020273,4]
[330275296,1719221469600,-726.38,0.00020273,4]
[330275297,1719221469611,-500.0,0.00020273,4]
[330275298,1719221469621,-652.98,0.00020273,4]
[330275299,1719221469631,-658.16,0.00020273,4]
[330275300,1719221469641,-1100.8,0.00020273,4]
[330275301,1719221469652,-808.21,0.00020273,4]
[330275302,1719221469661,-500.0,0.00020273,4]
[330275303,1719221469671,-600.96,0.00020273,4]
[330275304,1719221469852,-580.36,0.00020273,4]
[330275305,1719221469863,-541.37,0.00020273,4]
[330275306,1719221469873,-2529.06,0.00020273,4]
[330275307,1719221469883,-2863.88,0.00020273,4]
[330275308,1719221469894,-500.0,0.00020273,4]
[330275309,1719221469904,-500.0,0.00020273,4]
[330275310,1719221469914,-500.0,0.00020273,4]
[330275311,1719221469924,-500.0,0.00020273,4]
[330275312,1719221469934,-623.73,0.00020273,4]